bitfinex/quotes_ETHUSD_20220213
["timestamp","ask_amount","ask_price","bid_price","bid_amount"]
[1644794906360,0.8689355,2878.8,2878.4,0.01143409]
[1644794906563,4.83376055,2878.7,2878.4,0.01143409]
[1644794906766,5.00736055,2878.7,2878.4,0.01143409]
[1644794907029,1.11952649,2878.6,2877.4,1.041]
[1644794907218,1.11952649,2878.6,2877.4,0.1736]
[1644794907418,1.7381534,2878.5,2878.4,0.01143409]
[1644794907618,3.4763434,2878.5,2878.4,0.01143409]
[1644794908218,0.8690628,2878.6,2877.4,0.86895]
[1644794908520,0.1736,2878.7,2878.3,0.01143425]
[1644794908918,0.1736,2878.9,2878.3,0.01143425]
[1644794909118,1.0424553,2878.9,2878.3,0.01143425]
[1644794909324,1.0424553,2878.9,2878.0,1.16888]
[1644794909721,1.0424553,2878.9,2878.5,0.01143401]
[1644794909921,0.86893,2878.8,2878.5,0.01143401]
[1644794910120,0.1736,2878.7,2878.5,0.01143401]
[1644794910320,0.8689612,2878.7,2878.5,0.01143401]
[1644794910522,0.8689612,2878.7,2878.0,0.3]
[1644794910758,0.8689612,2878.7,2878.5,0.01143401]
[1644794911159,1.7379112,2878.7,2878.5,0.01143401]
[1644794911760,1.7379112,2878.7,2877.7,0.1736]
[1644794911965,0.1736,2878.6,2877.6,2.03785]
[1644794912161,0.1736,2878.6,2878.5,0.01143401]
[1644794912964,0.1736,2878.6,2877.6,2.03785]
[1644794913162,0.1736,2878.6,2877.6,0.3]
[1644794913366,0.1736,2878.8,2878.4,0.01143409]
[1644794913563,0.1736,2878.5,2878.4,0.15045009]
[1644794913763,0.1736,2878.8,2878.4,0.01143409]
[1644794913964,0.4736,2878.8,2878.4,3.409e-05]
[1644794914167,5.0,2878.7,2877.0,3.6379]
[1644794914365,5.0,2878.7,2877.0,3.9379]
[1644794914366,0.8692541,2878.3,2877.0,3.9379]
[1644794914621,0.1736,2878.2,2877.5,0.04575044]
[1644794914815,0.4736,2878.2,2877.5,0.04575044]
[1644794915214,0.86939,2877.9,2877.5,0.04575044]
[1644794915414,0.1736,2877.8,2877.0,0.3]
[1644794915813,0.1736,2877.8,2876.7,2.4328]
[1644794916013,0.1736,2877.8,2877.1,0.4736]
[1644794916213,0.1736,2877.8,2877.1,0.1736]
[1644794916913,1.04283,2877.8,2877.0,0.3]
[1644794917713,1.04283,2877.8,2877.0,1.16919]
[1644794917914,1.04283,2877.8,2877.0,0.86919]
[1644794918114,1.04283,2877.8,2877.3,0.01143591]
[1644794919165,1.04283,2877.8,2877.1,0.3]
[1644794919363,1.04283,2877.8,2877.4,0.01143568]
[1644794920163,1.04283,2877.8,2877.1,0.3]
[1644794920366,0.1736,2877.8,2877.1,0.3]
[1644794920569,0.1736,2878.4,2877.5,0.0114356]
[1644794920764,0.5,2879.2,2877.5,0.0114356]
[1644794920765,0.1736,2878.5,2877.5,0.0114356]
[1644794920965,0.1736,2878.9,2877.6,0.5]
[1644794921165,0.1736,2879.0,2877.6,0.5]
[1644794921364,0.1736,2879.0,2877.6,0.8]
[1644794922023,0.8688733,2878.8,2878.1,0.01143456]
[1644794922216,2.17733038,2878.7,2878.1,0.01143456]
[1644794922415,1.04254,2878.7,2878.1,0.01143456]
[1644794922623,0.1736,2879.0,2878.1,0.01143456]
[1644794922816,0.1736,2879.0,2877.9,0.3]
[1644794923016,0.1736,2879.0,2877.7,0.1736]
[1644794923017,1.0424358,2879.0,2877.7,20.7736]
[1644794923218,0.25,2879.3,2878.3,0.0101512]
[1644794923219,0.1736,2879.1,2878.3,0.0101512]
[1644794923416,1.96766525,2879.2,2878.4,0.86879]
[1644794923617,3.70538465,2879.2,2878.3,0.0101512]
[1644794923818,0.1736,2879.1,2878.3,0.0101512]
[1644794924216,0.1736,2879.1,2878.3,0.3]
[1644794924417,0.8689391,2879.0,2878.3,0.01015195]
[1644794924622,0.05073913,2879.4,2878.4,0.5]
[1644794924819,0.05073913,2879.4,2878.7,0.86856]
[1644794925017,0.05073913,2879.4,2878.8,4.35728346]
[1644794925616,0.1736,2879.8,2878.8,4.35728346]
[1644794925867,0.01014864,2879.4,2878.9,0.3]
[1644794926067,0.01014864,2879.4,2878.9,2.03717]
[1644794926268,0.01014864,2879.4,2879.0,0.3]
[1644794926468,6.42149994,2879.9,2879.0,0.3]
[1644794926469,0.1736,2879.5,2879.0,0.3]
[1644794926667,7.04009944,2879.9,2879.0,0.3]
[1644794926866,8.00498168,2879.9,2878.9,3.59781553]
[1644794927171,6.2421718,2880.2,2878.9,3.59781553]
[1644794927172,1.3649,2880.2,2879.1,0.86863]
[1644794927367,0.6137,2880.5,2879.2,3.5]
[1644794927567,0.3637,2880.5,2879.2,4.4736]
[1644794927771,0.3637,2880.5,2879.3,1.0]
[1644794927967,0.3637,2880.5,2879.4,0.6736]
[1644794927968,0.5373,2880.5,2879.4,0.6736]
[1644794928165,0.5373,2880.5,2879.4,0.9736]
[1644794928365,0.5373,2880.5,2879.8,0.86835]
[1644794928571,0.3637,2880.5,2879.8,0.86835]
[1644794928766,0.3637,2880.5,2879.9,0.5]
[1644794928967,0.3637,2880.5,2879.9,0.6734]
[1644794929167,0.00347189,2880.9,2879.9,0.6734]
[1644794929371,0.00347189,2880.9,2880.0,3.5]
[1644794929615,0.00347189,2880.9,2880.1,0.5]
[1644794929815,0.00347189,2880.9,2880.2,3.46594754]
[1644794930212,0.00347189,2880.9,2880.3,0.5]
[1644794930520,0.00347189,2880.9,2880.3,1.36823]
[1644794930716,0.01142975,2880.7,2880.3,1.66823]
[1644794931530,0.00347189,2880.9,2880.3,1.66823]
[1644794931723,0.00347189,2880.9,2879.9,0.1734]
[1644794931724,0.01142983,2880.6,2879.9,0.1734]
[1644794931914,0.1734,2880.5,2879.9,0.1734]
[1644794932114,0.1734,2880.5,2879.6,0.5]
[1644794932316,0.1734,2880.5,2879.6,2.23675]
[1644794932514,0.1734,2880.5,2879.6,1.73675]
[1644794932715,1.00115053,2880.4,2879.6,1.73675]
[1644794933119,0.01143055,2880.2,2879.6,1.73675]
[1644794933372,0.01143055,2880.2,2879.7,0.3]
[1644794933967,1.17475053,2880.4,2879.7,0.3]
[1644794934166,0.01143071,2880.1,2879.7,0.3]
[1644794935166,1.00115053,2880.4,2879.7,0.3]
[1644794935367,0.01143079,2880.0,2879.8,0.8684]
[1644794935771,0.01143079,2880.0,2879.8,1.1684]
[1644794935968,0.01143079,2880.0,2879.8,0.3]
[1644794936168,0.01143079,2880.0,2879.7,0.3]
[1644794936372,1.17475053,2880.4,2879.7,0.3]
[1644794936571,0.01143079,2880.0,2879.7,0.3]
[1644794936773,0.01143079,2880.0,2879.5,0.138936]
[1644794937033,0.01143079,2880.0,2879.3,0.01143392]
[1644794937625,1.47475053,2880.4,2879.1,1.73704]
[1644794938026,0.01143119,2879.8,2879.3,0.01143333]
[1644794938626,0.01143119,2879.8,2879.3,0.87997333]
[1644794938826,0.1736,2880.2,2879.3,0.86854]
[1644794939025,1.00115053,2880.4,2879.4,0.3]
[1644794939026,0.01143135,2879.7,2879.4,0.3]
[1644794939924,1.910654,2880.3,2879.4,0.3]
[1644794940125,0.01143135,2879.7,2879.4,0.3]
[1644794940758,0.01143135,2879.7,2879.3,0.01143309]
[1644794941070,0.1736,2879.6,2879.0,0.3]
[1644794941359,0.8687089,2879.5,2879.3,0.01143297]
[1644794942359,0.8687089,2879.5,2878.5,2.90608]
[1644794942557,0.87947428,2879.5,2879.3,0.01076645]
[1644794942760,0.01076538,2879.5,2879.3,0.01076645]
[1644794943458,1.2288,2880.2,2878.6,1.1736]
[1644794943459,7.6537,2880.2,2878.6,1.1736]
[1644794943662,7.6537,2880.2,2878.6,1.4736]
[1644794943864,0.01076538,2879.5,2879.3,0.01076645]
[1644794945914,0.8686167,2879.8,2878.8,0.86859]
[1644794946114,0.01076538,2879.5,2879.3,0.01076645]
[1644794947116,0.1736,2879.7,2879.2,0.86861]
[1644794947316,0.01081004,2879.5,2879.3,0.01081112]
[1644794948362,0.8686568,2879.6,2879.1,0.138956]
[1644794948561,0.01081004,2879.5,2879.3,0.01081112]
[1644794948865,0.18441004,2879.5,2879.3,0.01081112]
[1644794949083,0.01081004,2879.5,2879.3,0.01081112]
[1644794949458,1.04229,2880.0,2879.1,1.73707]
[1644794949658,1.04229,2880.0,2879.1,2.03707]
[1644794949859,1.04229,2880.0,2879.3,0.01081112]
[1644794949860,0.01081004,2879.5,2879.3,0.01081112]
[1644794950361,0.01081004,2879.5,2879.3,0.00941521]
[1644794950762,2.00712254,2879.8,2878.6,0.1736]
[1644794950964,1.31210554,2879.8,2878.7,0.3]
[1644794951160,1.31210554,2879.8,2878.6,0.1736]
[1644794951161,1.13850554,2879.8,2878.6,0.1736]
[1644794951366,0.1736,2880.1,2878.9,0.86859]
[1644794951563,0.1736,2879.9,2879.2,0.86861]
[1644794951764,0.1736,2880.1,2879.2,0.86861]
[1644794952015,0.1736,2880.1,2879.2,0.3]
[1644794952016,0.8685093,2880.1,2879.2,0.3]
[1644794952216,0.1736,2880.0,2879.0,0.8]
[1644794952413,1.15603309,2880.1,2879.0,0.8]
[1644794952614,0.98243309,2880.1,2879.0,1.84217]
[1644794952815,0.868551,2879.9,2879.1,1.73707]
[1644794953218,0.1736,2879.8,2879.1,0.3]
[1644794953415,0.98243309,2880.1,2879.2,0.00460763]
[1644794953416,0.1736,2880.0,2879.2,0.00460763]
[1644794953614,0.1736,2879.7,2879.2,0.00460763]
[1644794953815,0.98243309,2880.1,2879.2,0.00460763]
[1644794953816,0.1736,2880.0,2879.2,0.00460763]
[1644794954217,1.737449,2879.7,2879.2,0.00460763]
[1644794954418,0.1736,2879.6,2879.0,0.4736]
[1644794954615,0.4736,2879.6,2879.2,0.01143345]
[1644794954817,0.1736,2879.6,2879.2,0.01143345]
[1644794955216,0.92686359,2879.5,2879.2,0.01143345]
[1644794955416,0.8689,2879.3,2879.2,0.01143345]
[1644794955622,0.1736,2879.2,2879.0,0.1736]
[1644794955866,3.6,2879.1,2879.0,0.138994]
[1644794956065,3.6,2879.1,2878.5,0.04305904]
[1644794956464,0.86895,2879.0,2878.5,0.04305904]
[1644794956668,0.86895,2879.0,2878.1,1.04255]
[1644794956869,0.92686359,2879.5,2878.3,0.8689]
[1644794957066,0.01075968,2879.5,2878.6,0.01076316]
[1644794957971,6.7267586,2879.9,2878.7,1.36877]
[1644794958169,0.01076032,2879.5,2878.9,0.01076268]
[1644794958967,0.87946332,2879.5,2878.9,0.01076268]
[1644794959171,0.868703,2879.5,2878.8,0.1736]
[1644794959368,0.1736,2879.4,2879.1,0.01076244]
[1644794960419,0.1736,2879.8,2878.9,0.3]
[1644794960618,0.1736,2879.8,2879.1,0.87947733]
[1644794960619,0.01080571,2879.5,2879.1,0.87947733]
[1644794960818,0.01080571,2879.5,2879.1,1.17947733]
[1644794961418,0.01080571,2879.5,2879.1,0.31080733]
[1644794961619,0.8686576,2879.5,2879.1,0.86866]
[1644794961825,0.87946342,2879.5,2879.2,0.01080725]
[1644794962618,1.09842324,2879.4,2879.2,0.01080725]
[1644794962821,1.09842324,2879.4,2878.7,0.138965]
[1644794962822,1.96724324,2879.4,2878.8,0.3]
[1644794963019,0.8689265,2879.3,2879.2,0.01080721]
[1644794963872,1.74883,2879.2,2878.0,1.73783]
[1644794964066,0.8690123,2879.0,2877.7,7.47]
[1644794964266,3.81864904,2879.1,2878.5,0.04324729]
[1644794964267,4.37107281,2878.9,2878.5,0.04324729]
[1644794964468,0.4737,2878.9,2878.5,0.04324729]
[1644794964665,1.35558513,2878.9,2878.5,0.04324729]
[1644794964867,1.15955742,2878.7,2878.5,0.04324729]
[1644794965064,1.04277,2878.6,2878.5,0.04324729]
[1644794965268,0.8691353,2878.5,2877.8,0.0029218]
[1644794965467,2.89788742,2878.7,2878.5,0.00460776]
[1644794966369,2.89788742,2878.7,2877.8,0.0029218]
[1644794966565,0.1736,2878.6,2878.5,0.00460776]
[1644794966866,2.7809539,2878.6,2878.5,0.00460776]
[1644794967118,3.6500739,2878.6,2878.5,0.00460776]
[1644794967513,3.6500739,2878.6,2877.8,0.0029218]
[1644794967715,3.67337558,2878.5,2877.8,0.0029218]
[1644794967922,1.91185,2878.6,2878.4,0.0114341]
[1644794968116,1.7382173,2878.5,2878.4,0.0114341]
[1644794968718,1.7382173,2878.5,2877.9,0.86903]
[1644794968918,1.7382173,2878.5,2878.3,0.01143426]
[1644794969919,1.7382173,2878.5,2877.9,1.16903]
[1644794970221,0.8690413,2878.4,2878.3,0.01143434]
[1644794971260,0.8690413,2878.4,2877.9,1.16903]
[1644794971459,0.8690413,2878.4,2878.2,0.01143442]
[1644794972459,0.8690413,2878.4,2877.9,1.16903]
[1644794972659,0.8690413,2878.4,2878.2,0.0114345]
[1644794973661,0.8690413,2878.4,2877.9,1.16903]
[1644794973863,0.8690413,2878.4,2878.2,0.0114345]
[1644794974715,0.8690413,2878.4,2877.9,1.16903]
[1644794975117,0.8690413,2878.4,2878.2,0.0114345]
[1644794975916,0.8690413,2878.4,2877.9,1.16903]
[1644794976317,0.8690413,2878.4,2878.2,0.0114345]
[1644794976521,0.1736,2878.3,2878.2,0.0114345]
[1644794977118,0.1736,2878.3,2877.9,0.3]
[1644794977318,1.0426413,2878.4,2877.6,0.3029218]
[1644794977522,0.8691659,2878.2,2878.1,0.01143458]
[1644794978367,0.8691659,2878.2,2877.7,0.0029218]
[1644794978565,0.8691659,2878.2,2878.0,0.01143474]
[1644794979563,0.8691659,2878.2,2877.7,0.0029218]
[1644794979763,0.8691659,2878.2,2878.0,0.01143482]
[1644794979971,1.7383,2878.6,2878.0,0.01143482]
[1644794979972,7.22122058,2878.8,2878.0,0.01143482]
[1644794980170,6.0118,2878.8,2878.1,0.86886]
[1644794980364,0.1736,2878.8,2878.1,0.86886]
[1644794980563,0.1736,2878.9,2878.1,0.86886]
[1644794980767,0.1736,2878.9,2878.2,3.34964949]
[1644794980963,0.1736,2878.9,2878.3,0.01143426]
[1644794981567,5.8471,2879.2,2878.3,0.01143426]
[1644794981870,1.41412974,2879.4,2878.5,1.73754]
[1644794982116,3.1888,2879.6,2878.6,3.34145445]
[1644794982117,0.1736,2879.5,2878.6,3.34145445]
[1644794982320,0.01143045,2879.4,2878.6,0.31143378]
[1644794982512,0.95770411,2879.1,2878.6,0.31143378]
[1644794982726,0.95770411,2879.1,2878.6,0.01143378]
[1644794982914,0.1736,2879.0,2878.6,0.01143378]
[1644794983113,0.1736,2879.0,2878.5,0.3]
[1644794983412,0.1736,2879.0,2878.7,0.01143362]
[1644794983612,0.95770411,2879.1,2878.7,0.01143362]
[1644794983815,0.8689098,2878.9,2878.7,0.01143362]
[1644794984414,0.8689098,2878.9,2878.5,0.3]
[1644794984618,0.8689098,2878.9,2878.7,0.0114337]
[1644794985417,0.8689098,2878.9,2878.7,0.01019944]
[1644794985624,0.8689098,2878.9,2878.5,1.16885]
[1644794985888,1.82651581,2879.1,2878.5,1.16885]
[1644794987074,0.1736,2879.0,2878.7,0.0114337]
[1644794987377,0.18503072,2879.4,2878.7,0.8801637]
[1644794987577,0.18503072,2879.4,2878.8,1.48015678]
[1644794987578,0.01143072,2879.4,2878.8,1.48015678]
[1644794987976,0.1736,2879.6,2878.8,1.48015678]
[1644794988277,0.01143143,2879.4,2878.8,1.49159067]
[1644794988476,0.01143143,2879.4,2878.8,0.88003389]
[1644794988675,0.01143143,2879.4,2878.9,0.86861]
[1644794988977,0.01143143,2879.4,2878.9,1.16861]
[1644794989176,0.1736,2879.6,2878.9,0.3]
[1644794989379,0.1736,2879.7,2879.0,1.48006472]
[1644794989633,5.46898333,2880.1,2879.1,3.89761123]
[1644794989634,0.01143155,2879.4,2879.1,3.89761123]
[1644794989830,0.1736,2880.3,2879.4,0.01579783]
[1644794990033,0.1736,2880.3,2879.5,3.21676472]
[1644794990230,0.04570981,2880.4,2879.6,6.14742117]
[1644794990231,0.21930981,2880.4,2879.6,6.14742117]
[1644794990432,0.1736,2880.5,2879.7,1.48006472]
[1644794990627,0.1736,2880.5,2879.9,0.86828]
[1644794990927,0.1736,2880.5,2879.9,1.16828]
[1644794991226,1.05528513,2880.8,2879.9,1.16828]
[1644794991426,0.1734,2880.8,2879.9,1.16828]
[1644794991925,0.1734,2880.8,2880.0,0.86833]
[1644794991926,0.01143008,2880.5,2880.0,0.86833]
[1644794992127,0.1734,2880.4,2880.0,0.86833]
[1644794992330,0.1734,2880.4,2880.1,0.3]
[1644794992727,0.1734,2880.4,2880.0,5.41292333]
[1644794993034,0.01143024,2880.4,2880.0,2.03659]
[1644794993265,0.01143024,2880.4,2880.2,0.86831]
[1644794993466,0.01143024,2880.4,2880.2,1.16831]
[1644794994067,0.8683393,2880.6,2880.2,1.16831]
[1644794994267,0.01143016,2880.4,2880.2,1.16831]
[1644794995271,0.8683393,2880.6,2880.0,1.73659]
[1644794995472,0.1734,2880.8,2879.5,0.1734]
[1644794995473,0.1734,2880.3,2879.5,0.1734]
[1644794995674,0.1734,2880.3,2879.4,0.01579783]
[1644794995675,0.8685166,2880.1,2879.4,0.01579783]
[1644794995869,1.55548513,2880.2,2879.4,0.01579783]
[1644794996068,2.18188513,2880.1,2879.4,0.01579783]
[1644794996267,1.15145731,2879.7,2879.4,0.01579783]
[1644794996868,1.45145731,2879.7,2879.4,0.01579783]
[1644794997524,3.18885671,2879.7,2879.4,0.01579783]
[1644794997721,0.1736,2879.6,2879.4,0.01579783]
[1644794999129,0.01143144,2879.6,2879.4,0.01579783]
[1644795000024,0.8686694,2879.7,2879.4,0.01579783]
[1644795000224,0.01143144,2879.6,2879.4,0.01579783]
[1644795001165,0.8686694,2879.7,2879.4,0.01579783]
[1644795001364,0.01143144,2879.6,2879.4,0.01579783]
[1644795001566,0.18503144,2879.6,2879.4,0.01579783]
[1644795002164,0.01143144,2879.6,2879.4,0.01579783]
[1644795002363,0.8686694,2879.7,2879.4,0.01579783]
[1644795002565,0.1736,2879.6,2879.4,0.01579783]
[1644795002771,0.4736,2879.6,2879.4,0.01579783]
[1644795002967,0.48503144,2879.6,2879.4,0.01579783]
[1644795003571,0.4736,2879.6,2879.4,0.01579783]
[1644795003774,0.86884,2879.5,2879.4,0.01579783]
[1644795003968,0.8687266,2879.5,2878.5,3.37051893]
[1644795004167,0.31143144,2879.6,2878.5,2.7188855]
[1644795004368,0.31143144,2879.6,2878.6,1.48012198]
[1644795004616,0.01143144,2879.6,2878.7,3.52755905]
[1644795004816,2.56259984,2879.9,2878.7,3.52755905]
[1644795005317,9.2306,2880.1,2878.8,1.980014]
[1644795005516,9.2306,2880.1,2878.9,5.80598842]
[1644795005718,9.2306,2880.1,2879.0,1.980014]
[1644795005917,1.4929,2880.4,2879.1,3.5]
[1644795005918,0.25,2880.4,2879.1,3.5]
[1644795006223,6.0704,2880.6,2879.3,21.16849]
[1644795006416,0.88188513,2881.0,2879.4,3.15338032]
[1644795006619,0.88188513,2880.9,2879.4,5.1736]
[1644795007016,0.88188513,2880.9,2879.4,0.6736]
[1644795007216,1.75017763,2880.9,2879.4,0.6736]
[1644795007417,0.01142992,2880.3,2879.4,0.6236]
[1644795007617,0.01142992,2880.3,2879.4,0.5]
[1644795008276,0.01142992,2880.3,2879.8,0.86821]
[1644795008473,0.93979415,2880.6,2879.8,0.86821]
[1644795008674,0.93979415,2880.6,2879.8,1.16821]
[1644795008675,0.0114304,2880.0,2879.8,1.16821]
[1644795009674,0.48723262,2880.2,2879.8,1.16821]
[1644795009878,0.01143032,2880.0,2879.8,1.16821]
[1644795010375,0.01143032,2880.0,2879.6,1.73642]
[1644795010576,0.01143032,2880.0,2879.7,0.3]
[1644795010777,1.30578412,2880.2,2879.7,0.3]
[1644795010977,0.1736,2880.1,2879.8,0.86854]
[1644795011176,0.01143048,2879.9,2879.8,1.16854]
[1644795011576,0.01143048,2879.9,2879.6,1.73642]
[1644795012037,0.8686026,2880.0,2879.5,1.007538]
[1644795012222,0.8686026,2880.0,2879.5,0.138928]
[1644795012523,0.01081994,2879.9,2879.5,0.138928]
[1644795012732,0.88430826,2879.7,2879.5,0.138928]
[1644795013122,0.1736,2879.6,2879.5,0.138928]
[1644795014122,0.89512844,2879.7,2879.5,0.138928]
[1644795014526,0.43723262,2879.6,2879.5,0.138928]
[1644795014724,0.43723262,2879.6,2878.8,1.73741]
[1644795014927,2.17480402,2879.6,2879.1,0.86876]
[1644795015126,0.1736,2879.5,2878.9,0.3]
[1644795015325,4.12650609,2879.5,2878.9,0.3]
[1644795015775,1.0,2879.4,2878.3,0.0029218]
[1644795015974,1.11889712,2878.9,2878.4,0.01079782]
[1644795016175,0.1736,2878.8,2878.4,0.01079782]
[1644795016976,0.1736,2878.8,2878.3,0.0029218]
[1644795017276,0.01079506,2878.7,2878.4,0.01079652]
[1644795018078,0.1736,2878.8,2878.3,2.0407918]
[1644795018277,0.01079514,2878.7,2878.4,0.01079641]
[1644795018477,0.01079514,2878.7,2878.4,0.87976641]
[1644795018878,0.01079514,2878.7,2878.5,0.3]
[1644795019279,0.1736,2878.8,2878.5,0.3]
[1644795019533,0.01079693,2878.7,2878.5,0.3]
[1644795019723,0.43723262,2878.6,2878.5,0.3]
[1644795020827,0.01079701,2878.7,2878.6,0.5983658]
[1644795021325,0.01079701,2878.7,2878.6,0.8983658]
[1644795021729,0.1736,2878.8,2878.6,0.8983658]
[1644795021924,0.18439685,2878.8,2878.6,0.8983658]
[1644795022424,0.01079685,2878.8,2878.6,0.8983658]
[1644795022825,1.04254,2879.1,2878.6,0.8983658]
[1644795023269,0.01079665,2878.8,2878.6,0.8983658]
[1644795024068,1.04254,2879.1,2878.6,0.8983658]
[1644795024274,0.01079665,2878.8,2878.6,0.8983658]
[1644795026470,0.86888,2879.3,2878.6,0.8983658]
[1644795026670,0.01079664,2878.8,2878.7,0.86889]
[1644795027722,0.1736,2879.6,2878.7,0.86889]
[1644795027920,0.01079656,2878.9,2878.7,0.86889]
[1644795028925,1.90572147,2879.7,2878.7,0.86889]
[1644795029122,0.01079648,2878.9,2878.7,0.86889]
[1644795030126,1.9187895,2879.7,2878.7,0.86889]
[1644795030127,0.86878,2879.6,2878.7,0.86889]
[1644795030325,0.01079648,2878.9,2878.7,0.86889]
[1644795031067,0.01079648,2878.9,2878.8,1.48008889]
[1644795031267,0.25,2879.9,2878.8,2.64873889]
[1644795031466,1.05548513,2880.0,2879.1,0.86867]
[1644795031467,0.88188513,2880.0,2879.1,0.86867]
[1644795031867,1.07263814,2879.8,2879.1,1.16867]
[1644795032269,0.1736,2879.7,2879.1,1.16867]
[1644795032870,0.01079545,2879.6,2879.1,1.16867]
[1644795033368,0.01079545,2879.6,2879.2,0.86867]
[1644795033569,0.87956545,2879.6,2879.2,0.86867]
[1644795033769,0.86877,2879.6,2879.2,0.86867]
[1644795034069,0.01080361,2879.5,2879.2,0.86867]
[1644795034270,0.1736,2879.4,2879.2,0.86867]
[1644795034721,0.1736,2879.4,2879.1,1.16867]
[1644795034722,0.99797072,2879.3,2879.1,1.16867]
[1644795034916,1.04246,2879.4,2879.1,0.3]
[1644795034917,0.1736,2879.4,2879.1,0.3]
[1644795035119,0.1736,2879.4,2878.7,1.163]
[1644795035120,0.01080376,2879.4,2878.7,1.163]
[1644795035315,0.01080376,2879.4,2878.6,0.5983658]
[1644795035515,0.01080376,2879.4,2878.7,0.3]
[1644795035717,0.01080376,2879.4,2878.6,0.8983658]
[1644795035917,0.01080376,2879.4,2879.0,0.86873]
[1644795036116,1.90812168,2879.7,2879.0,0.86873]
[1644795036318,0.01080424,2879.1,2879.0,1.16873]
[1644795037324,0.1736,2879.6,2879.1,0.86868]
[1644795037518,0.01079548,2879.2,2879.1,1.73736]
[1644795037718,0.01079548,2879.2,2879.1,2.03736]
[1644795038563,1.05548513,2879.7,2879.1,2.03736]
[1644795038765,0.01079533,2879.3,2879.2,0.8687]
[1644795039564,0.01079533,2879.3,2879.1,2.03736]
[1644795039764,0.88188513,2879.7,2879.2,0.8687]
[1644795039969,0.01079517,2879.4,2879.2,0.8687]
[1644795040971,0.1736,2879.7,2879.2,0.8687]
[1644795041169,0.01079568,2879.4,2879.2,0.8687]
[1644795042033,0.88188513,2879.9,2879.2,0.8687]
[1644795042225,0.88188513,2880.1,2879.3,1.16854]
[1644795042422,0.01079568,2879.4,2879.3,2.27988866]
[1644795042627,0.01079568,2879.4,2879.3,2.57988866]
[1644795042822,0.01079568,2879.4,2879.3,3.57988866]
[1644795043124,0.04316639,2880.5,2879.4,3.61471078]
[1644795043323,1.05548513,2880.7,2879.5,3.84821866]
[1644795043324,0.88188513,2880.7,2879.5,3.84821866]
[1644795043523,1.12038911,2880.8,2879.6,1.65348866]
[1644795043524,0.88188513,2880.6,2879.6,1.65348866]
[1644795043723,0.88188513,2880.6,2879.8,1.16829]
[1644795043924,0.88188513,2880.6,2879.9,0.86833]
[1644795044124,0.88188513,2880.6,2879.9,1.16833]
[1644795044324,0.88188513,2880.6,2880.0,0.86833]
[1644795044525,0.88188513,2880.5,2880.0,0.86833]
[1644795044724,0.01080221,2880.4,2880.1,0.3]
[1644795045524,0.01080221,2880.4,2880.2,0.86833]
[1644795045771,0.88188513,2880.7,2880.2,0.86833]
[1644795045972,0.01080221,2880.4,2880.2,0.86833]
[1644795046976,0.88188513,2880.6,2880.2,0.86833]
[1644795047174,0.01080213,2880.4,2880.2,0.86833]
[1644795047373,0.18420213,2880.4,2880.2,0.86833]
[1644795047573,0.01080213,2880.4,2880.2,0.86833]
[1644795047974,0.18420213,2880.4,2880.2,0.86833]
[1644795048175,0.1734,2880.4,2880.2,0.86833]
[1644795048374,0.18419371,2880.4,2880.2,0.86833]
[1644795049175,0.01079371,2880.4,2880.2,0.86833]
[1644795049380,0.1734,2880.4,2880.2,0.86833]
[1644795049616,0.18419371,2880.4,2880.2,0.86833]
[1644795050017,0.01079371,2880.4,2880.2,0.86833]
[1644795050218,1.11414495,2880.4,2880.2,0.86833]
[1644795050422,1.11414495,2880.4,2880.1,0.3]
[1644795050423,25.04721856,2880.3,2880.1,0.3]
[1644795050617,21.5221547,2880.2,2880.1,0.3]
[1644795050816,21.5221547,2880.2,2879.4,0.01471078]
[1644795050817,0.90885386,2879.8,2879.4,0.01471078]
[1644795051016,0.1736,2880.1,2879.4,0.01471078]
[1644795051217,0.51386957,2880.1,2879.4,0.01471078]
[1644795051821,0.51386957,2880.1,2879.5,0.86865]
[1644795052016,0.01079515,2879.9,2879.5,0.86865]
[1644795052217,0.01079515,2879.9,2879.5,1.16865]
[1644795052816,0.96264432,2880.0,2879.5,1.16865]
[1644795053265,0.01079523,2879.8,2879.5,1.16865]
[1644795054167,0.96264432,2880.0,2879.5,1.16865]
[1644795054368,0.0107953,2879.8,2879.5,1.16865]
[1644795055369,1.75053513,2880.1,2879.6,0.86861]
[1644795055574,0.01079532,2879.8,2879.6,0.86861]
[1644795055769,0.01079532,2879.8,2879.7,0.3]
[1644795056573,1.75053513,2880.1,2879.7,0.3]
[1644795056574,0.86869,2880.0,2879.7,0.3]
[1644795056775,0.01079516,2879.9,2879.4,0.31471078]
[1644795057031,0.1736,2879.8,2879.4,0.31471078]
[1644795057720,0.89268029,2879.9,2879.4,0.31471078]
[1644795057721,0.86871,2879.9,2879.4,0.31471078]
[1644795057920,0.0107954,2879.7,2879.4,0.31471078]
[1644795058123,0.0107954,2879.7,2879.4,0.01471078]
[1644795058321,0.0107954,2879.7,2879.4,0.31471078]
[1644795058919,0.86871,2879.9,2879.4,0.31471078]
[1644795059121,0.01079547,2879.7,2879.4,0.31471078]
[1644795060121,2.75053513,2880.1,2879.4,0.31471078]
[1644795060321,0.86738072,2879.7,2879.5,0.86865]
[1644795060627,0.86738072,2879.7,2879.4,0.31471078]
[1644795060628,0.01079547,2879.7,2879.4,0.31471078]
[1644795061270,0.1736,2879.8,2879.4,0.31471078]
[1644795061471,0.01079547,2879.7,2879.4,0.31471078]
[1644795061671,0.01079547,2879.7,2879.4,0.01471078]
[1644795061873,0.01079547,2879.7,2879.4,0.31471078]
[1644795062473,0.1736,2879.8,2879.4,0.31471078]
[1644795062774,0.01079549,2879.7,2879.4,0.31471078]
[1644795063774,1.0086774,2879.6,2879.4,0.31471078]
[1644795064173,0.88188513,2879.8,2879.4,0.31471078]
[1644795065220,0.86875,2879.8,2879.4,0.31471078]
[1644795065621,1.75063513,2879.8,2879.4,0.31471078]
[1644795065826,0.89739538,2879.7,2879.4,0.31471078]
[1644795066020,1.07099538,2879.7,2879.4,0.31471078]
[1644795066622,0.01143198,2879.8,2879.5,3.6]
[1644795066823,0.01143198,2879.8,2879.6,0.5]
[1644795067220,0.01143198,2879.8,2879.6,0.8]
[1644795067420,0.00391559,2880.4,2879.6,0.8]
[1644795067622,0.01143234,2879.8,2879.6,2.5365334]